Cogmind - Beta 13 @@@ ROGUE MODE // 2024.04.28 @ 19:27:15 Player: kirkalish Result: Destroyed by S-10 Pest with Light Assault Rifle Performance ------------- Evolutions (0) 0 Regions Visited (1) 200 Robots Destroyed (10) 50 Value Destroyed (194) 194 Prototype IDs (0) 0 Alien Tech Used (0) 0 Bonus (0) 0 TOTAL SCORE: 444 Bonus ------- None Cogmind --------- Core Integrity 0/250 Matter 190/300 Energy 85/100 System Corruption 0% Temperature Cool (52) Movement Walking (190) Ox1 Location -10/Materials Parts ------- > --- POWER (1) -------- (None) > --- PROPULSION (2) --- Aluminum Leg Aluminum Leg > --- UTILITY (2) ------ Small Storage Unit Large Storage Unit > --- WEAPON (2) ------- Medium Laser > --- INVENTORY (15) --- Light Ion Engine Light Nuclear Core Aluminum Leg Visual Processing Unit Sensor Array Signal Interpreter Peak State ------------ > --- POWER ------------ Ion Engine > --- PROPULSION ------- Light Treads Light Treads > --- UTILITY ---------- Medium Armor Plating Medium Armor Plating > --- WEAPON ----------- Medium Laser Particle Gun > --- INVENTORY -------- Light Ion Engine Aluminum Leg Aluminum Leg Small Storage Unit Particle Gun [Rating: 10] Favorites ----------- Power Ion Engine Engine Ion Engine Propulsion Light Treads Treads Light Treads Leg Aluminum Leg Utility Small Storage Unit Storage Small Storage Unit Protection Medium Armor Plating Weapon Medium Laser Energy Gun Medium Laser Build | -11 -10 ------- Run | Yrd Mat Slots Evolved . | . . Power . | . . Propulsion . | . . Utility . | . . Weapon . | . . Parts Attached 16 | 5 11 Power 3 | 1 2 Engine 3 | 1 2 Core . | . . Reactor . | . . Propulsion 4 | 2 2 Treads 2 | 2 . Leg 2 | . 2 Wheel . | . . Hover . | . . Flight . | . . Utility 4 | . 4 Device . | . . Storage 2 | . 2 Processor . | . . Hackware . | . . Protection 2 | . 2 Artifact . | . . Weapon 5 | 2 3 Energy Gun 5 | 2 3 Energy Cannon . | . . Ballistic Gun . | . . Ballistic Cannon . | . . Launcher . | . . Special Weapon . | . . Impact Weapon . | . . Slashing Weapon . | . . Piercing Weapon . | . . Special Melee Weapon . | . . Unidentified Prototypes . | . . Parts Lost 9 | . 9 Power 3 | . 3 Propulsion 1 | . 1 Utility 2 | . 2 Weapon 3 | . 3 Highest Loss Streak 6 | . 6 To Critical Strikes . | . . Average Slot Usage (%) 75 | . 75 Engine 12 | . 12 Treads 18 | . 18 Leg 6 | . 6 Storage 9 | . 9 Protection 3 | . 3 Energy Gun 24 | . 24 Naked Turns . | . . Heaviest Build 33 | 9 33 Greatest Support 40 | 40 40 Greatest Overweight (x) 1 | . 1 Average Overweight (x) . | . . Largest Inventory Capacity 15 | 5 15 Average Capacity 7 | 5 8 Most Carried 7 | 5 7 Average Carried 3 | 2 3 Final Capacity 15 | 5 15 Final Carried 6 | 4 6 Class Distribution -------------------- 100% | Mutant Dominant Class ---------------- Mutant | -10/Materials Resources | -11 -10 ----------- Run | Yrd Mat Matter Collected 436 | 250 186 Remotely . | . . Salvage Created 244 | . 244 Parts 19 | . 19 Haulers Intercepted . | . . Recyclers Shooed 1 | . 1 Parts Field Recycled . | . . Retrieved Matter . | . . Parts Self-Destructed . | . . Prevented . | . . Kills | -11 -10 ------- Run | Yrd Mat Combat Hostiles Destroyed 6 | . 6 Guns 5 | . 5 Classes Destroyed 4 | . 4 Worker 1 | . 1 Watcher 3 | . 3 Swarmer 3 | . 3 Grunt 3 | . 3 Best Kill Streak 3 | . 3 Combat Bots Only 2 | . 2 Max Kills in Single Turn 2 | . 2 Gunslinging . | . . Exploded . | . . Melee . | . . Uniques/NPCs Destroyed . | . . Combat | -11 -10 -------- Run | Yrd Mat Hostile Shots Fired 97 | . 97 Missed 26 | . 26 Damage Taken 820 | . 820 Core 252 | . 252 Absorbed by Shields . | . . Core Remaining (%) 100 | 100 . Volleys Fired 54 | . 54 Largest 2 | . 2 Hottest 115 | . 115 Shots Fired 77 | . 77 Gun 77 | . 77 Cannon . | . . Launcher . | . . Special . | . . Kinetic . | . . Thermal 77 | . 77 Explosive . | . . Electromagnetic . | . . Robot Hit Streak 4 | . 4 Robot Miss Streak 4 | . 4 Penetration Max . | . . Secondary Targets . | . . Shots Hit Robots 37 | . 37 Core Hits 11 | . 11 Critical Kills . | . . Critical Parts Destroyed . | . . Critical Strikes 6 | . 6 Burn 6 | . 6 Melee Attacks . | . . Impact . | . . Slashing . | . . Piercing . | . . Sneak Attacks . | . . Combat Hostiles . | . . Follow-up Attacks . | . . Damage Inflicted 593 | . 593 Guns 593 | . 593 Cannons . | . . Explosions . | . . Melee . | . . Ramming . | . . Kinetic . | . . Thermal 593 | . 593 Explosive . | . . Electromagnetic . | . . Impact . | . . Slashing . | . . Piercing . | . . Highest Corruption . | . . Average Corruption . | . . Corruption Purged . | . . Corruption Blocked . | . . Overload Shots . | . . Overflow Damage . | . . Projectiles . | . . Explosions . | . . Melee . | . . Knockbacks . | . . Impact . | . . Kinetic . | . . Secondary . | . . Self-Inflicted Damage . | . . Shots . | . . Rammed . | . . Targets Rammed . | . . Kicked . | . . Crushed . | . . Highest Temperature 658 | . 658 Average Temperature 237 | . 237 Received Heat Transfer 156 | . 156 Effects 47 | . 47 Shutdowns 7 | . 7 Energy Bleed 1 | . 1 Interference 3 | . 3 Matter Decay 9 | . 9 Short Circuit 1 | . 1 Damage (minor) 7 | . 7 Damage (major) 15 | . 15 Damage (core) 4 | . 4 Siege Activations . | . . Robots Corrupted . | . . Combat Hostiles . | . . Parts Fried . | . . Impact Corruptions . | . . Robots Melted 1 | . 1 Combat Hostiles 1 | . 1 Parts Melted 4 | . 4 Heat Transferred 1998 | . 1998 Parts Sabotaged . | . . Parts Stolen . | . . Parts Stripped . | . . Power Chain Reactions . | . . Alert | -11 -10 ------- Run | Yrd Mat Peak Influence 92 | . 92 Initial . | . . Average 29 | . 35 Maximum Alert Level . | . . Low Security (%) 100 | 100 100 Level 1 . | . . Level 2 . | . . Level 3 . | . . Level 4 . | . . Level 5 . | . . High Security . | . . Max Security . | . . Squads Dispatched 2 | . 2 Investigation . | . . Extermination . | . . Reinforcement 2 | . 2 Assault . | . . Garrison . | . . Intercept . | . . Searches Triggered . | . . Construction Impeded . | . . Haulers Reinforced . | . . Active Scanning Responses . | . . Cargo Convoy Interrupts . | . . Stealth | -11 -10 --------- Run | Yrd Mat Distress Signals 3 | . 3 Communications Jammed . | . . Distress Signals . | . . Times Spotted 21 | . 21 Peak Tracking Total 4 | . 4 Tactical Retreats 1 | . 1 Traps | -11 -10 ------- Run | Yrd Mat Traps Triggered . | . . Indirectly . | . . Trap Hack Attempts . | . . Triggered . | . . Disarmed . | . . Reprogrammed . | . . Reused . | . . Traps Extracted . | . . Installed . | . . Triggered . | . . Machines | -11 -10 ---------- Run | Yrd Mat Machines Disabled . | . . Max in Single Turn . | . . Machines Repaired . | . . Machines Dismantled . | . . Machines Sabotaged . | . . Overloaded Fab Kills . | . . Hacking | -11 -10 --------- Run | Yrd Mat Machines Accessed 2 | . 2 Terminals 2 | . 2 Fabricators . | . . Repair Stations . | . . Recycling Units . | . . Scanalyzers . | . . Garrison Access . | . . Total Hacks 4 | . 4 Successful 1 | . 1 Failed 3 | . 3 Catastrophic 1 | . 1 Database Lockouts . | . . Manual 2 | . 2 Terminals 4 | . 4 Fabricators . | . . Repair Stations . | . . Recycling Units . | . . Scanalyzers . | . . Garrison Access . | . . Terminal Hacks 1 | . 1 Branch Access Points 1 | . 1 Fabricator Hacks . | . . Repair Station Hacks . | . . Recycling Unit Hacks . | . . Scanalyzer . | . . Garrison Access Hacks . | . . Unauthorized Hacks . | . . Terminals . | . . Fabricators . | . . Repair Stations . | . . Recycling Units . | . . Scanalyzers . | . . Garrison Access . | . . Data Cores Recovered . | . . Used . | . . Hacking Detections 1 | . 1 Full Trace Events . | . . Feedback Events . | . . Feedback Blocked . | . . Robot Schematics Acquired . | . . Robots Built . | . . Authchips . | . . Time . | . . Total Robot Build Rating . | . . Part Schematics Acquired . | . . Parts Built . | . . Authchips . | . . Time . | . . Total Part Build Rating . | . . Parts Repaired . | . . Time . | . . Parts Recycled . | . . Recycled Matter . | . . Retrieved Matter . | . . Retrieved Components . | . . Parts Scanalyzed . | . . Part Schematics Acquired . | . . Parts Damaged . | . . Bothacking | -11 -10 ------------ Run | Yrd Mat Used RIF Installer . | . . Robots Hacked . | . . Non-combat . | . . Combat . | . . Robot Hacks Applied . | . . Relay Couplers Released . | . . Fabnet Peak Effective % . | . . Robots Rewired . | . . Allies Hacked . | . . Hacks Repelled . | . . Allies | -11 -10 -------- Run | Yrd Mat Total Allies . | . . Largest Group . | . . Highest-Rated Group . | . . Highest-Rated Ally . | . . Total Orders . | . . Ally Attacks . | . . Total Damage . | . . Kills . | . . Allies Corrupted . | . . Allies Melted . | . . Intel | -11 -10 ------- Run | Yrd Mat Robot Analysis Total . | . . Derelict Logs Recovered . | . . Drone Launches . | . . Drone Recoveries . | . . Exploration | -11 -10 ------------- Run | Yrd Mat Turns Passed 710 | 114 596 Spaces Moved 315 | 70 245 Core 10 | 10 . Treads 258 | 60 198 Legs 47 | . 47 Wheels . | . . Hover . | . . Flight . | . . Fastest Speed 50 | 50 160 Average Speed 163 | 144 169 Slowest Speed 240 | 160 240 Overloaded Moves . | . . Propulsion Burnouts . | . . Robots Hopped . | . . Cave-ins Triggered . | . . Exploration Rate (%) 19 | 4 35 Regions Visited 1 Branch Regions . Pre-discovered Areas . | . . Known Exits Taken . | . . Unknown Exits Taken 1 | 1 . Scrap Searched . | . . Spaces Dug . | . . Terrain Destroyed . | . . Melee . | . . Projectile . | . . AOE . | . . Terrain Rammed . | . . Walls Destroyed . | . . Machines Disabled . | . . Actions | -11 -10 --------- Run | Yrd Mat Total 434 | 83 351 Wait 29 | . 29 Move 314 | 69 245 Hop . | . . Pick Up 19 | 9 10 Fast Attach 2 | . 2 Attach 13 | 5 8 Detach . | . . Swap 1 | . 1 Drop 2 | . 2 Fire 54 | . 54 Melee . | . . Ram . | . . Kick . | . . Crush . | . . Escape Stasis . | . . Rewire . | . . Trap . | . . Miscellaneous . | . . Route ------- -11/Scrapyard -10/Materials (discovered 1 exit: Min) History --------- Turn | Location | Event 3 | -11/Scrapyard | Discovered new exit (range 15) 115 | -11/Scrapyard | Entered Materials 306 | -10/Materials | Build established: Mutant 342 | -10/Materials | Identified exit to Mines 456 | -10/Materials | Core integrity fell below 50% 515 | -10/Materials | Lost 6 parts (1p1n2u2w) 636 | -10/Materials | Core integrity fell below 20% 711 | -10/Materials | Destroyed by S-10 Pest with Light Assault Rifle Last Messages --------------- reinforcements to Terminal M001. 00625_ O-16 Technician locks terminal. 00634_ K-01 Serf cleans the Terminal. 00637_ Destroyed Hover Unit. 00639_ Destroyed Lgt. Ion Engine. 00645_ W-16 Scout suffers critical hit (Burn). 00645_ W-16 Scout destroyed. 00660_ S-10 Pest suffers critical hit (Burn). 00661_ S-10 Pest heat short circuits Lgt. Ion Engine. 00667_ S-10 Pest critical meltdown. 00667_ Flight Unit melted. 00681_ Acquired 10 matter. 00685_ Acquired Visual Processing Unit. 00687_ Acquired Signal Interpreter. 00692_ Acquired Sensor Array. 00699_ Acquired 15 matter. 00706_ K-01 Serf cleans the Hadron Collector. 00707_ Lgt. Ion Engine destroyed. 00711_ Particle Gun destroyed. Map ----- +----------------------------------------------------+ | ????????????????????????????????????????????? | | ????????????????????????????????????????????? | | ????????????????????????????????????????????? | | ????????????????????????????????????????????? | | ????????????????????????????????????????????? | | ????????????????????????????????????????????? | | ????????????????????????????????????????????? | | ????????????????????????????????????????????? | | ??????????????>?????????????????????????????? | | ????????????????????????????????????????????? | | ????????????????????????????????????????????? | | ????????????????????????????????????????????? | | ????????????????????????????????????????????? | | ????????????????###??##+###?????????????????? | | ????????????????? ? #?????????????????? | | ????????????????? ?? ######?####???????? | | ????????????????? ?? ? ???? ??? | | ????????????????##/### ? ???? ??? | | ?????????????????ks # " " ??? ??? | | ?????????????????"s # """ """ "??? "??? | | ?????????????????? # "" "" "" "" ? | | ?????????????????? !# """ """ """ """? | | ??????????????????? # "" "" "" ""? | | ??????????????????? # """ """ """ """ | | ???????????????????#/# """ """ """ """ | | ???????????????????#@ """ """ """ """ | | ???????????????????# " " " " | | ???????????????????# | | ???????????????????# | | ??????????????????## "T" | | ???????????? | | ??????????? #### | | ???????????????????#####+##### | | ?????????????????????????????### ############ | | ???????????????????????????????# #??????????? | | ???????????????????????????????#=#??????????? | | ???????????????????????????????# #??????????? | | ???????????????????????????????# #??????????? | | ???????????????????????????????# #????######? | | ???????????????????????????????# #???##!! !## | | ???????????????????????????????# #???#! !# | | ???????????????????????????????# ##### # | | ???????????????????????????????# # # | | ????????????????????# ##### % =!= | | ????????????????????# + [ | | ????????????????????# ##### =%= | | ???????????????????????????????# #####%=[ | | ???????????????????????????????#######???#! | | ????????????????????????????#######??????# | | ????????????????????????????# #??????# | +----------------------------------------------------+ Best States ------------- Heat Dissipation 25 Energy Generation 10 Energy Capacity 250 Matter Stores 300 Matter Capacity 300 Sight Range 16 Terrain Scan Density 10 Armor Coverage 450 Evasion (%) 50 Recoil Reduction 2 Item Schematics ----------------- None Robot Schematics ------------------ None Fabricated ------------ Nothing Alien Tech Used ----------------- None Achievements -------------- None Challenges ------------ None Game ------ Seed CobblerStealthUnit Manual? 0 Play Time 00:10:05 Cumulative 7.1 hours Start 2024.04.28 @ 19:19:55 End 2024.04.28 @ 19:27:15 Sessions 1 Manual Loads 0 Difficulty Rogue Special Mode None Game No. 15 Rogue 15 Adventurer 0 Explorer 0 Win Type - Total 0 Types 0/0/0/0/0/0/0/0/0 Lore% 2 Gallery% 8 Achievement% 7 Wizard Run 0 Options --------- Layout 1 ASCII 0 Keyboard 0 Movement Mouse Keybinds 0 Fullscreen 2 Font 32/SmallcapsGlow Map View 50x35 Zoom Use 0% Tactical HUD 1 Map Filters NONE Filters NONE Steam 1 RUN: ce417b0e-acdb-4c7f-a661-b3c155c68379